[Event "*** SCC Grand Prix: Titled Tuesday Blitz"]
[Site "Chess.com"]
[Date "2020.10.06"]
[Round "6"]
[White "Shivagami"]
[Black "Loy_Konstantin"]
[Result "0-1"]
[WhiteElo "2211"]
[BlackElo "2354"]
[TimeControl "180+1"]
[EndTime "11:08:54 PDT"]
[Termination "Loy_Konstantin won by resignation"]

1. d4 {[%clk 0:03:00.9]} 1... Nf6 {[%clk 0:02:58.7]} 2. c4 {[%clk 0:03:01]} 2...
c5 {[%clk 0:02:59]} 3. d5 {[%clk 0:03:00.7]} 3... b5 {[%clk 0:02:59.5]} 4. Qc2
{[%clk 0:03:00.1]} 4... bxc4 {[%clk 0:02:58.1]} 5. e4 {[%clk 0:02:59.3]} 5... d6
{[%clk 0:02:58.3]} 6. Bxc4 {[%clk 0:02:59.5]} 6... g6 {[%clk 0:02:58.8]} 7. Nc3
{[%clk 0:02:59.8]} 7... Bg7 {[%clk 0:02:59.4]} 8. f4 {[%clk 0:03:00.2]} 8... O-O
{[%clk 0:03:00]} 9. Nf3 {[%clk 0:03:00.7]} 9... Ba6 {[%clk 0:03:00.4]} 10. Qe2
{[%clk 0:02:56.5]} 10... Bxc4 {[%clk 0:03:00]} 11. Qxc4 {[%clk 0:02:57.1]} 11...
Qb6 {[%clk 0:02:59.2]} 12. O-O {[%clk 0:02:56.7]} 12... Qb4 {[%clk 0:02:58.3]}
13. Nd2 {[%clk 0:02:51.3]} 13... Qxc4 {[%clk 0:02:56.1]} 14. Nxc4 {[%clk
0:02:51.3]} 14... a5 {[%clk 0:02:53.2]} 15. Bd2 {[%clk 0:02:47.5]} 15... Nbd7
{[%clk 0:02:34.8]} 16. Rae1 {[%clk 0:02:38.4]} 16... Ng4 {[%clk 0:02:21]} 17. h3
{[%clk 0:02:09.8]} 17... Bd4+ {[%clk 0:02:20]} 18. Kh1 {[%clk 0:02:10]} 18...
Nf2+ {[%clk 0:02:16.1]} 19. Kh2 {[%clk 0:02:10.2]} 19... Nd3 {[%clk 0:02:16.1]}
20. Re2 {[%clk 0:02:10.6]} 20... Rfb8 {[%clk 0:02:10.9]} 21. b3 {[%clk
0:02:03.3]} 21... Nb6 {[%clk 0:02:09.9]} 22. Nxb6 {[%clk 0:01:51.9]} 22... Rxb6
{[%clk 0:02:10.8]} 23. Rf3 {[%clk 0:01:48.1]} 23... Nb4 {[%clk 0:01:59.2]} 24.
Na4 {[%clk 0:01:46.3]} 24... Rb7 {[%clk 0:01:55.8]} 25. a3 {[%clk 0:01:33]}
25... Nc2 {[%clk 0:01:38.7]} 26. Bxa5 {[%clk 0:00:57.6]} 26... Nxa3 {[%clk
0:01:27.1]} 27. Bd2 {[%clk 0:00:45.9]} 27... Nb5 {[%clk 0:01:15]} 28. Bc1 {[%clk
0:00:36.4]} 28... Nc7 {[%clk 0:01:11.2]} 29. Rg3 {[%clk 0:00:32.6]} 29... Rab8
{[%clk 0:01:07.1]} 30. Nb2 {[%clk 0:00:20.7]} 30... Rxb3 {[%clk 0:01:02.2]} 31.
Rxb3 {[%clk 0:00:21.1]} 31... Rxb3 {[%clk 0:01:03.1]} 32. Nd1 {[%clk 0:00:18]}
32... Nb5 {[%clk 0:00:47.2]} 33. Rc2 {[%clk 0:00:12.6]} 33... Rd3 {[%clk
0:00:42.9]} 34. Nb2 {[%clk 0:00:10.2]} 34... Bxb2 {[%clk 0:00:41.9]} 35. Bxb2
{[%clk 0:00:10.6]} 35... Nd4 {[%clk 0:00:42.2]} 36. Rf2 {[%clk 0:00:03.6]} 36...
c4 {[%clk 0:00:35.1]} 37. Bxd4 {[%clk 0:00:03.6]} 37... Rxd4 {[%clk 0:00:36]}
38. Re2 {[%clk 0:00:04.1]} 38... c3 {[%clk 0:00:34.8]} 39. Kg3 {[%clk 0:00:04]}
39... Rd2 {[%clk 0:00:30.4]} 40. Re1 {[%clk 0:00:03.5]} 40... c2 {[%clk
0:00:30.3]} 41. Rc1 {[%clk 0:00:03.5]} 41... Kg7 {[%clk 0:00:28.8]} 42. Kf3
{[%clk 0:00:03.5]} 42... h5 {[%clk 0:00:28.9]} 43. g3 {[%clk 0:00:03.6]} 43...
Kf6 {[%clk 0:00:27.8]} 44. Ke3 {[%clk 0:00:03.9]} 44... Rh2 {[%clk 0:00:26.6]}
45. h4 {[%clk 0:00:04.3]} 45... e6 {[%clk 0:00:22.4]} 46. dxe6 {[%clk
0:00:03.6]} 46... Kxe6 {[%clk 0:00:21.9]} 47. Kf3 {[%clk 0:00:03.7]} 47... d5
{[%clk 0:00:20.5]} 48. exd5+ {[%clk 0:00:03.5]} 48... Kxd5 {[%clk 0:00:20.4]}
49. Ke3 {[%clk 0:00:04.2]} 49... Ke6 {[%clk 0:00:19.9]} 50. Kd3 {[%clk
0:00:04.1]} 50... Kf5 {[%clk 0:00:19.6]} 51. Re1 {[%clk 0:00:02.1]} 51... Kg4
{[%clk 0:00:17.8]} 52. Ke3 {[%clk 0:00:02.4]} 52... Kxg3 {[%clk 0:00:16.3]} 0-1

[Event "*** SCC Grand Prix: Titled Tuesday Blitz"]
[Site "Chess.com"]
[Date "2020.10.06"]
[Round "6"]
[White "Vadim_Biliy"]
[Black "WiktoriaPOL"]
[Result "0-1"]
[WhiteElo "2296"]
[BlackElo "2053"]
[TimeControl "180+1"]
[EndTime "11:08:55 PDT"]
[Termination "WiktoriaPOL won on time"]

1. d4 {[%clk 0:03:00.9]} 1... Nf6 {[%clk 0:02:59.6]} 2. Nf3 {[%clk 0:03:00.7]}
2... g6 {[%clk 0:02:58.9]} 3. e3 {[%clk 0:03:01.3]} 3... Bg7 {[%clk 0:02:58.2]}
4. Be2 {[%clk 0:03:02]} 4... O-O {[%clk 0:02:57.6]} 5. O-O {[%clk 0:03:02.5]}
5... d6 {[%clk 0:02:57.1]} 6. b4 {[%clk 0:03:02.9]} 6... Nbd7 {[%clk 0:02:48.9]}
7. c3 {[%clk 0:03:00.1]} 7... e5 {[%clk 0:02:48]} 8. Bb2 {[%clk 0:02:50.2]} 8...
e4 {[%clk 0:02:45.7]} 9. Nfd2 {[%clk 0:02:49.1]} 9... d5 {[%clk 0:02:43.4]} 10.
c4 {[%clk 0:02:48.8]} 10... c6 {[%clk 0:02:42.3]} 11. b5 {[%clk 0:02:45.5]}
11... cxb5 {[%clk 0:02:28.6]} 12. cxd5 {[%clk 0:02:44]} 12... Nxd5 {[%clk
0:02:26.1]} 13. Nxe4 {[%clk 0:02:38.2]} 13... a6 {[%clk 0:02:14.3]} 14. Nbc3
{[%clk 0:02:31.7]} 14... Nxc3 {[%clk 0:02:10.3]} 15. Nxc3 {[%clk 0:02:24]} 15...
Nb6 {[%clk 0:02:05.1]} 16. Rc1 {[%clk 0:02:09.2]} 16... Be6 {[%clk 0:01:56.6]}
17. a4 {[%clk 0:01:56.1]} 17... b4 {[%clk 0:01:49.4]} 18. Ne4 {[%clk 0:01:47.1]}
18... Bd7 {[%clk 0:01:20.3]} 19. Nc5 {[%clk 0:01:45.2]} 19... Bc6 {[%clk
0:01:16.9]} 20. Bf3 {[%clk 0:01:33.3]} 20... Bxf3 {[%clk 0:00:43.5]} 21. Qxf3
{[%clk 0:01:31.8]} 21... Rb8 {[%clk 0:00:26.7]} 22. Nxb7 {[%clk 0:01:21.5]}
22... Qd5 {[%clk 0:00:06]} 23. Nc5 {[%clk 0:01:03]} 23... Qxf3 {[%clk
0:00:04.5]} 24. gxf3 {[%clk 0:01:02.3]} 24... a5 {[%clk 0:00:02.7]} 25. Rfd1
{[%clk 0:00:54.8]} 25... Rfd8 {[%clk 0:00:02.8]} 26. Rc2 {[%clk 0:00:46]} 26...
Bf8 {[%clk 0:00:02.7]} 27. e4 {[%clk 0:00:42.2]} 27... Rbc8 {[%clk 0:00:02.7]}
28. Ra1 {[%clk 0:00:29]} 28... Bxc5 {[%clk 0:00:02.8]} 29. Rxc5 {[%clk
0:00:23.2]} 29... Rxc5 {[%clk 0:00:02.2]} 30. dxc5 {[%clk 0:00:23.4]} 30... Nc4
{[%clk 0:00:02.4]} 31. Bf6 {[%clk 0:00:23.2]} 31... Rc8 {[%clk 0:00:02.2]} 32.
Bd4 {[%clk 0:00:20.5]} 32... b3 {[%clk 0:00:01.7]} 33. Rb1 {[%clk 0:00:19.4]}
33... Nd2 {[%clk 0:00:01.7]} 34. Rd1 {[%clk 0:00:16]} 34... Nxf3+ {[%clk
0:00:02.4]} 35. Kg2 {[%clk 0:00:15.2]} 35... Nxd4 {[%clk 0:00:03]} 36. Rxd4
{[%clk 0:00:15]} 36... Rxc5 {[%clk 0:00:03.3]} 37. Rd8+ {[%clk 0:00:14.9]} 37...
Kg7 {[%clk 0:00:03.2]} 38. Rb8 {[%clk 0:00:14.9]} 38... Rc3 {[%clk 0:00:03.3]}
39. Rb5 {[%clk 0:00:13.4]} 39... Rc4 {[%clk 0:00:03.4]} 40. Rxb3 {[%clk
0:00:10]} 40... Rxa4 {[%clk 0:00:03.6]} 41. f3 {[%clk 0:00:09.3]} 41... Rb4
{[%clk 0:00:03.8]} 42. Rc3 {[%clk 0:00:08]} 42... a4 {[%clk 0:00:04]} 43. Rc6
{[%clk 0:00:07.2]} 43... Rb2+ {[%clk 0:00:04.2]} 44. Kg3 {[%clk 0:00:06.3]}
44... a3 {[%clk 0:00:04.4]} 45. Ra6 {[%clk 0:00:06.2]} 45... a2 {[%clk
0:00:04.7]} 46. f4 {[%clk 0:00:05]} 46... Kf8 {[%clk 0:00:03.9]} 47. e5 {[%clk
0:00:04.7]} 47... Ke7 {[%clk 0:00:03.9]} 48. h3 {[%clk 0:00:03.2]} 48... Rc2
{[%clk 0:00:03.7]} 0-1

[Event "*** SCC Grand Prix: Titled Tuesday Blitz"]
[Site "Chess.com"]
[Date "2020.10.06"]
[Round "6"]
[White "KuzubovYuriy"]
[Black "tigra"]
[Result "1-0"]
[WhiteElo "2942"]
[BlackElo "2826"]
[TimeControl "180+1"]
[EndTime "11:08:57 PDT"]
[Termination "KuzubovYuriy won by resignation"]

1. d4 {[%clk 0:03:00.9]} 1... Nf6 {[%clk 0:03:00]} 2. Nf3 {[%clk 0:03:00.8]}
2... g6 {[%clk 0:02:57.4]} 3. Nbd2 {[%clk 0:02:59.9]} 3... d5 {[%clk 0:02:56.4]}
4. e3 {[%clk 0:02:59.1]} 4... Bg7 {[%clk 0:02:56.7]} 5. b4 {[%clk 0:02:58.9]}
5... O-O {[%clk 0:02:50.7]} 6. c4 {[%clk 0:02:58.7]} 6... c6 {[%clk 0:02:49.4]}
7. a4 {[%clk 0:02:54.3]} 7... a5 {[%clk 0:02:43.4]} 8. b5 {[%clk 0:02:54]} 8...
c5 {[%clk 0:02:38.8]} 9. Bb2 {[%clk 0:02:53.1]} 9... cxd4 {[%clk 0:02:38.3]} 10.
Bxd4 {[%clk 0:02:51.7]} 10... Be6 {[%clk 0:02:31.7]} 11. Rc1 {[%clk 0:02:43]}
11... dxc4 {[%clk 0:02:23.1]} 12. Bxc4 {[%clk 0:02:37]} 12... Bxc4 {[%clk
0:02:20]} 13. Nxc4 {[%clk 0:02:36.7]} 13... Nbd7 {[%clk 0:02:19.2]} 14. O-O
{[%clk 0:02:35.5]} 14... Rc8 {[%clk 0:02:15.7]} 15. Qd2 {[%clk 0:02:20.4]} 15...
b6 {[%clk 0:02:15.6]} 16. Rfd1 {[%clk 0:02:13.2]} 16... Ne4 {[%clk 0:02:10.1]}
17. Qb2 {[%clk 0:02:06.3]} 17... Bxd4 {[%clk 0:02:08.3]} 18. Nxd4 {[%clk
0:02:05.8]} 18... Ndc5 {[%clk 0:01:54.6]} 19. Nc6 {[%clk 0:01:54.2]} 19... Qc7
{[%clk 0:01:43.3]} 20. Qd4 {[%clk 0:01:41.6]} 20... f6 {[%clk 0:01:17.1]} 21. f3
{[%clk 0:01:36.7]} 21... Ng5 {[%clk 0:01:17.2]} 22. N4xa5 {[%clk 0:00:42.5]}
22... Nce6 {[%clk 0:00:50.9]} 23. Qc4 {[%clk 0:00:34.3]} 23... bxa5 {[%clk
0:00:41.7]} 24. f4 {[%clk 0:00:34]} 24... Kg7 {[%clk 0:00:39.7]} 25. fxg5 {[%clk
0:00:32.9]} 25... Nxg5 {[%clk 0:00:40.6]} 26. Rd5 {[%clk 0:00:27.4]} 26... Nf7
{[%clk 0:00:35.8]} 27. Rcd1 {[%clk 0:00:26.9]} 27... Ne5 {[%clk 0:00:26]} 28.
Nxe5 {[%clk 0:00:22.8]} 28... Qxc4 {[%clk 0:00:26.9]} 29. Nxc4 {[%clk
0:00:23.3]} 29... Rxc4 {[%clk 0:00:27.2]} 30. R5d4 {[%clk 0:00:23.2]} 30... Rc3
{[%clk 0:00:19.6]} 31. Kf2 {[%clk 0:00:20.9]} 31... Kf7 {[%clk 0:00:18.2]} 32.
Rb1 {[%clk 0:00:19.7]} 32... Rb8 {[%clk 0:00:17.1]} 33. Kf3 {[%clk 0:00:17.9]}
33... g5 {[%clk 0:00:16.8]} 34. g4 {[%clk 0:00:17.4]} 34... Rc2 {[%clk 0:00:16]}
35. h3 {[%clk 0:00:17.5]} 35... Rh2 {[%clk 0:00:16.1]} 36. Kg3 {[%clk
0:00:17.7]} 36... Re2 {[%clk 0:00:16.3]} 37. Rb3 {[%clk 0:00:17.9]} 37... Rb6
{[%clk 0:00:12.9]} 38. Rc4 {[%clk 0:00:17.1]} 38... Kg6 {[%clk 0:00:10.4]} 39.
Rbc3 {[%clk 0:00:16.9]} 39... h5 {[%clk 0:00:09.6]} 40. gxh5+ {[%clk 0:00:15.8]}
40... Kxh5 {[%clk 0:00:09.8]} 41. Rc6 {[%clk 0:00:15.8]} 41... Rb7 {[%clk
0:00:10.2]} 42. Kf3 {[%clk 0:00:14]} 42... Rh2 {[%clk 0:00:10]} 43. Kg3 {[%clk
0:00:14]} 43... Ra2 {[%clk 0:00:10]} 44. R3c4 {[%clk 0:00:12.7]} 44... Ra3
{[%clk 0:00:09.9]} 45. Kf3 {[%clk 0:00:12.8]} 45... Kg6 {[%clk 0:00:09]} 46. h4
{[%clk 0:00:12.3]} 46... gxh4 {[%clk 0:00:08.8]} 47. Rxh4 {[%clk 0:00:12]} 47...
Rd7 {[%clk 0:00:09.2]} 48. Rg4+ {[%clk 0:00:11.6]} 48... Kf7 {[%clk 0:00:09.1]}
49. Re4 {[%clk 0:00:10.6]} 49... Rb3 {[%clk 0:00:08.2]} 50. Ra6 {[%clk
0:00:10.2]} 50... Rb2 {[%clk 0:00:06.3]} 51. Rxa5 {[%clk 0:00:10.4]} 51... Rd1
{[%clk 0:00:06]} 52. Rd4 {[%clk 0:00:10.6]} 52... f5 {[%clk 0:00:05.7]} 53. Rxd1
{[%clk 0:00:10.3]} 1-0

[Event "*** SCC Grand Prix: Titled Tuesday Blitz"]
[Site "Chess.com"]
[Date "2020.10.06"]
[Round "6"]
[White "GameOverBro"]
[Black "fighter2jz"]
[Result "1-0"]
[WhiteElo "2516"]
[BlackElo "2660"]
[TimeControl "180+1"]
[EndTime "11:08:58 PDT"]
[Termination "GameOverBro won by resignation"]

1. e4 {[%clk 0:03:00.9]} 1... e6 {[%clk 0:02:59.5]} 2. d4 {[%clk 0:03:00.6]}
2... d5 {[%clk 0:02:58.8]} 3. Nd2 {[%clk 0:03:00.7]} 3... Nc6 {[%clk 0:02:57.3]}
4. Ngf3 {[%clk 0:02:58.7]} 4... Nf6 {[%clk 0:02:55.4]} 5. e5 {[%clk 0:02:59.1]}
5... Nd7 {[%clk 0:02:56]} 6. c4 {[%clk 0:02:59.1]} 6... f6 {[%clk 0:02:52.8]} 7.
cxd5 {[%clk 0:02:53.7]} 7... exd5 {[%clk 0:02:52.8]} 8. Bb5 {[%clk 0:02:49]}
8... fxe5 {[%clk 0:02:45.2]} 9. Nxe5 {[%clk 0:02:48.3]} 9... Ndxe5 {[%clk
0:02:42.5]} 10. dxe5 {[%clk 0:02:45.3]} 10... g6 {[%clk 0:02:26.6]} 11. O-O
{[%clk 0:02:16.7]} 11... Bg7 {[%clk 0:02:25.5]} 12. f4 {[%clk 0:02:14.4]} 12...
O-O {[%clk 0:02:24.8]} 13. Nf3 {[%clk 0:02:09.2]} 13... a6 {[%clk 0:02:23.5]}
14. Ba4 {[%clk 0:02:06.3]} 14... Kh8 {[%clk 0:02:23.2]} 15. Be3 {[%clk
0:02:04.1]} 15... Ne7 {[%clk 0:02:15.5]} 16. Qd2 {[%clk 0:01:40.3]} 16... b6
{[%clk 0:02:15.1]} 17. b4 {[%clk 0:01:20.5]} 17... Nf5 {[%clk 0:01:39.2]} 18.
Bf2 {[%clk 0:01:20]} 18... Bd7 {[%clk 0:01:29.7]} 19. Bb3 {[%clk 0:01:15]} 19...
c6 {[%clk 0:01:27.6]} 20. a4 {[%clk 0:01:12.3]} 20... Rc8 {[%clk 0:01:26.1]} 21.
Rac1 {[%clk 0:01:11.5]} 21... Qe7 {[%clk 0:01:23.9]} 22. a5 {[%clk 0:01:10.2]}
22... bxa5 {[%clk 0:01:07.4]} 23. Bc5 {[%clk 0:01:10]} 23... Qd8 {[%clk
0:01:05.4]} 24. Bxf8 {[%clk 0:01:01.6]} 24... Bxf8 {[%clk 0:01:06.3]} 25. bxa5
{[%clk 0:01:02.2]} 25... Rb8 {[%clk 0:01:06.8]} 26. Ng5 {[%clk 0:00:57.6]} 26...
Qe8 {[%clk 0:00:55.4]} 27. e6 {[%clk 0:00:55.2]} 27... Rxb3 {[%clk 0:00:47.5]}
28. exd7 {[%clk 0:00:48.2]} 28... Qxd7 {[%clk 0:00:48.4]} 29. Rfe1 {[%clk
0:00:46.9]} 29... Bd6 {[%clk 0:00:28.6]} 30. g3 {[%clk 0:00:33.7]} 30... Bb4
{[%clk 0:00:24]} 31. Qc2 {[%clk 0:00:29]} 31... Nd4 {[%clk 0:00:23.2]} 32. Qd1
{[%clk 0:00:24.3]} 32... c5 {[%clk 0:00:22.8]} 33. Re5 {[%clk 0:00:16.9]} 33...
h6 {[%clk 0:00:22.7]} 34. Ne6 {[%clk 0:00:09.2]} 34... Nf3+ {[%clk 0:00:20]} 35.
Kh1 {[%clk 0:00:07.6]} 35... Nxe5 {[%clk 0:00:20.9]} 36. Qxb3 {[%clk 0:00:07.9]}
36... Qxe6 {[%clk 0:00:20.2]} 37. fxe5 {[%clk 0:00:08.4]} 37... Qxe5 {[%clk
0:00:21.1]} 38. Qf3 {[%clk 0:00:08.5]} 38... Qe4 {[%clk 0:00:20.6]} 39. Kg2
{[%clk 0:00:07.2]} 39... Qxf3+ {[%clk 0:00:19]} 40. Kxf3 {[%clk 0:00:08.1]}
40... c4 {[%clk 0:00:17.4]} 41. Kf4 {[%clk 0:00:06.1]} 41... Bd6+ {[%clk
0:00:16.4]} 42. Ke3 {[%clk 0:00:06.3]} 42... Be5 {[%clk 0:00:16.7]} 43. Rb1
{[%clk 0:00:05.5]} 43... Kg7 {[%clk 0:00:15.6]} 44. Rb6 {[%clk 0:00:06]} 44...
c3 {[%clk 0:00:15.3]} 45. Rxa6 {[%clk 0:00:05]} 45... d4+ {[%clk 0:00:14.7]} 46.
Kd3 {[%clk 0:00:05.3]} 46... Kf7 {[%clk 0:00:14.3]} 47. Rc6 {[%clk 0:00:05]}
47... Bb8 {[%clk 0:00:09.8]} 48. a6 {[%clk 0:00:05]} 48... Ke7 {[%clk
0:00:09.3]} 49. Rc8 {[%clk 0:00:05.2]} 49... Ba7 {[%clk 0:00:08.6]} 50. Rc7+
{[%clk 0:00:05.5]} 1-0

[Event "*** SCC Grand Prix: Titled Tuesday Blitz"]
[Site "Chess.com"]
[Date "2020.10.06"]
[Round "6"]
[White "davigator"]
[Black "Shankovskyi"]
[Result "0-1"]
[WhiteElo "2354"]
[BlackElo "2477"]
[TimeControl "180+1"]
[EndTime "11:09:01 PDT"]
[Termination "Shankovskyi won on time"]

1. e4 {[%clk 0:03:00.9]} 1... e6 {[%clk 0:02:59.5]} 2. d4 {[%clk 0:02:59.9]}
2... d5 {[%clk 0:02:59.3]} 3. Nc3 {[%clk 0:02:59.9]} 3... Bb4 {[%clk 0:02:58.9]}
4. e5 {[%clk 0:02:59.8]} 4... c5 {[%clk 0:02:59.5]} 5. a3 {[%clk 0:03:00.1]}
5... Bxc3+ {[%clk 0:02:59.8]} 6. bxc3 {[%clk 0:03:00.8]} 6... Ne7 {[%clk
0:03:00.3]} 7. Qg4 {[%clk 0:03:00.8]} 7... cxd4 {[%clk 0:03:00.7]} 8. Qxg7
{[%clk 0:03:00.8]} 8... Rg8 {[%clk 0:02:59.9]} 9. Qxh7 {[%clk 0:03:01.4]} 9...
Qc7 {[%clk 0:02:59.3]} 10. Ne2 {[%clk 0:03:01.6]} 10... Nbc6 {[%clk 0:02:58.9]}
11. f4 {[%clk 0:03:01.9]} 11... dxc3 {[%clk 0:02:58.9]} 12. Qd3 {[%clk
0:03:01.8]} 12... Bd7 {[%clk 0:02:58.5]} 13. Qxc3 {[%clk 0:03:01.2]} 13... O-O-O
{[%clk 0:02:48.9]} 14. Rb1 {[%clk 0:03:00.6]} 14... d4 {[%clk 0:02:45.3]} 15.
Qc4 {[%clk 0:03:00.4]} 15... Nf5 {[%clk 0:02:25]} 16. Bd2 {[%clk 0:02:59.5]}
16... Kb8 {[%clk 0:02:06]} 17. g3 {[%clk 0:02:56.1]} 17... Rc8 {[%clk
0:02:03.3]} 18. Bg2 {[%clk 0:02:54.2]} 18... Qd8 {[%clk 0:01:25.8]} 19. Qd3
{[%clk 0:02:48]} 19... Rc7 {[%clk 0:01:25.1]} 20. Be4 {[%clk 0:02:46.6]} 20...
Bc8 {[%clk 0:01:16.4]} 21. Kf2 {[%clk 0:02:25.4]} 21... f6 {[%clk 0:01:14.6]}
22. exf6 {[%clk 0:02:17.7]} 22... Qxf6 {[%clk 0:01:15.5]} 23. Bxf5 {[%clk
0:01:51]} 23... exf5 {[%clk 0:01:16.4]} 24. Rhe1 {[%clk 0:01:45.2]} 24... Be6
{[%clk 0:01:07.6]} 25. Rb5 {[%clk 0:01:35.8]} 25... Rh7 {[%clk 0:01:04.8]} 26.
h4 {[%clk 0:01:27]} 26... a6 {[%clk 0:01:03.5]} 27. Rc5 {[%clk 0:01:22.8]} 27...
Bc8 {[%clk 0:00:33.3]} 28. Rg1 {[%clk 0:01:13]} 28... Qd6 {[%clk 0:00:24.9]} 29.
Rxf5 {[%clk 0:00:29]} 29... Bxf5 {[%clk 0:00:23.7]} 30. Qxf5 {[%clk 0:00:29]}
30... Re7 {[%clk 0:00:23.1]} 31. Qd3 {[%clk 0:00:28.6]} 31... Rge8 {[%clk
0:00:22.4]} 32. Re1 {[%clk 0:00:23.7]} 32... Qd7 {[%clk 0:00:19.7]} 33. Ng1
{[%clk 0:00:21.6]} 33... Rxe1 {[%clk 0:00:18.6]} 34. Bxe1 {[%clk 0:00:21.8]}
34... Qg4 {[%clk 0:00:16.9]} 35. Nf3 {[%clk 0:00:19.4]} 35... Re3 {[%clk
0:00:15.2]} 36. Qd1 {[%clk 0:00:17]} 36... Qh3 {[%clk 0:00:09.8]} 37. Bd2 {[%clk
0:00:16.1]} 37... Re8 {[%clk 0:00:06.7]} 38. Qf1 {[%clk 0:00:15.6]} 38... Qf5
{[%clk 0:00:06.5]} 39. Qd3 {[%clk 0:00:14.9]} 39... Qh3 {[%clk 0:00:07]} 40. Qf1
{[%clk 0:00:13.6]} 40... Qe6 {[%clk 0:00:07.4]} 41. Ng5 {[%clk 0:00:11.8]} 41...
Qa2 {[%clk 0:00:07]} 42. Qd3 {[%clk 0:00:11.4]} 42... Qb1 {[%clk 0:00:06]} 43.
h5 {[%clk 0:00:09.9]} 43... Qh1 {[%clk 0:00:06.2]} 44. Nf3 {[%clk 0:00:10.4]}
44... Qxh5 {[%clk 0:00:06.1]} 45. f5 {[%clk 0:00:10]} 45... Qg4 {[%clk
0:00:04.2]} 46. Bf4+ {[%clk 0:00:10]} 46... Ka8 {[%clk 0:00:03.7]} 47. f6 {[%clk
0:00:10.6]} 47... Qe6 {[%clk 0:00:03.3]} 48. Qg6 {[%clk 0:00:08]} 48... Rg8
{[%clk 0:00:03.6]} 49. Qh6 {[%clk 0:00:03.1]} 49... Rf8 {[%clk 0:00:03.4]} 50.
Bg5 {[%clk 0:00:01.3]} 50... d3 {[%clk 0:00:03.7]} 0-1

[Event "*** SCC Grand Prix: Titled Tuesday Blitz"]
[Site "Chess.com"]
[Date "2020.10.06"]
[Round "6"]
[White "DenLaz"]
[Black "esapunov"]
[Result "0-1"]
[WhiteElo "2804"]
[BlackElo "2658"]
[TimeControl "180+1"]
[EndTime "11:09:03 PDT"]
[Termination "esapunov won by resignation"]

1. d4 {[%clk 0:02:59.7]} 1... Nf6 {[%clk 0:02:59.1]} 2. c4 {[%clk 0:02:59.6]}
2... g6 {[%clk 0:02:59.7]} 3. Nc3 {[%clk 0:02:58.8]} 3... Bg7 {[%clk 0:03:00.3]}
4. e4 {[%clk 0:02:58.6]} 4... O-O {[%clk 0:03:00.9]} 5. Nf3 {[%clk 0:02:58.8]}
5... d6 {[%clk 0:03:01.3]} 6. Be2 {[%clk 0:02:59.5]} 6... e5 {[%clk 0:03:01.7]}
7. Be3 {[%clk 0:02:59.9]} 7... Ng4 {[%clk 0:03:01.3]} 8. Bg5 {[%clk 0:02:59.8]}
8... f6 {[%clk 0:03:01.6]} 9. Bh4 {[%clk 0:03:00]} 9... Nc6 {[%clk 0:03:02.2]}
10. d5 {[%clk 0:02:59.8]} 10... Ne7 {[%clk 0:03:01.8]} 11. Nd2 {[%clk 0:03:00]}
11... h5 {[%clk 0:03:02]} 12. f3 {[%clk 0:02:52.6]} 12... Nh6 {[%clk 0:03:00.9]}
13. g4 {[%clk 0:02:38.9]} 13... hxg4 {[%clk 0:02:58.6]} 14. fxg4 {[%clk
0:02:38.2]} 14... Nf7 {[%clk 0:02:56.3]} 15. Qc2 {[%clk 0:02:35]} 15... Ng5
{[%clk 0:02:51.2]} 16. O-O-O {[%clk 0:02:32]} 16... Bh6 {[%clk 0:02:49.6]} 17.
Kb1 {[%clk 0:02:31.1]} 17... Kg7 {[%clk 0:02:48.4]} 18. Rdf1 {[%clk 0:02:31]}
18... Nh3 {[%clk 0:02:44.3]} 19. Bg3 {[%clk 0:02:27.9]} 19... Bf4 {[%clk
0:02:39]} 20. Be1 {[%clk 0:02:21]} 20... Rh8 {[%clk 0:02:37.8]} 21. Nb3 {[%clk
0:01:58.2]} 21... b6 {[%clk 0:02:32.7]} 22. Nc1 {[%clk 0:01:57.3]} 22... c5
{[%clk 0:02:26.7]} 23. Nd3 {[%clk 0:01:54.1]} 23... g5 {[%clk 0:02:26.5]} 24.
Bd1 {[%clk 0:01:41.5]} 24... Ng6 {[%clk 0:02:24.3]} 25. Qg2 {[%clk 0:01:34]}
25... Be3 {[%clk 0:02:05.7]} 26. Rf3 {[%clk 0:01:03.4]} 26... Ngf4 {[%clk
0:01:59.1]} 27. Qf1 {[%clk 0:01:01.2]} 27... Bd4 {[%clk 0:01:58]} 28. Rg3 {[%clk
0:00:28.1]} 28... a6 {[%clk 0:01:47.8]} 29. Nxf4 {[%clk 0:00:17.1]} 29... Nxf4
{[%clk 0:01:46.5]} 30. Bd2 {[%clk 0:00:17.5]} 30... Rb8 {[%clk 0:01:41.1]} 31.
Ne2 {[%clk 0:00:17.3]} 31... Nxe2 {[%clk 0:01:29.9]} 32. Bxe2 {[%clk 0:00:18.2]}
32... b5 {[%clk 0:01:30.3]} 33. b3 {[%clk 0:00:17]} 33... Bd7 {[%clk 0:01:29.9]}
34. h4 {[%clk 0:00:16.2]} 34... gxh4 {[%clk 0:01:25.5]} 35. Rgh3 {[%clk
0:00:16.3]} 35... Qe8 {[%clk 0:01:23.2]} 36. Rxh4 {[%clk 0:00:10.1]} 36... Qg6
{[%clk 0:01:14]} 37. Qf3 {[%clk 0:00:09.8]} 37... Rxh4 {[%clk 0:01:11.6]} 38.
Rxh4 {[%clk 0:00:10.7]} 38... Rh8 {[%clk 0:01:10.6]} 39. Rxh8 {[%clk 0:00:10.8]}
39... Kxh8 {[%clk 0:01:11]} 40. Kc2 {[%clk 0:00:09.8]} 40... Kg7 {[%clk
0:01:09.8]} 41. Qg2 {[%clk 0:00:02.6]} 41... f5 {[%clk 0:01:03.5]} 42. exf5
{[%clk 0:00:02.9]} 42... Bxf5+ {[%clk 0:01:03.2]} 43. Kd1 {[%clk 0:00:03.4]}
43... Bd3 {[%clk 0:00:57.2]} 44. g5 {[%clk 0:00:02.8]} 44... bxc4 {[%clk
0:00:54]} 45. bxc4 {[%clk 0:00:02.8]} 45... Bxe2+ {[%clk 0:00:53]} 46. Kxe2
{[%clk 0:00:03.7]} 46... e4 {[%clk 0:00:51.5]} 47. Qh3 {[%clk 0:00:02.6]} 47...
Qf7 {[%clk 0:00:47.2]} 48. Qh6+ {[%clk 0:00:02.2]} 48... Kg8 {[%clk 0:00:47.4]}
49. Qh3 {[%clk 0:00:02.4]} 49... Qf2+ {[%clk 0:00:46.2]} 50. Kd1 {[%clk
0:00:02.3]} 50... e3 {[%clk 0:00:45.6]} 51. Qe6+ {[%clk 0:00:02.3]} 51... Kg7
{[%clk 0:00:46]} 52. Qe7+ {[%clk 0:00:02.6]} 52... Kg6 {[%clk 0:00:46.3]} 53.
Qe8+ {[%clk 0:00:02.4]} 53... Kxg5 {[%clk 0:00:46.3]} 54. Qg8+ {[%clk
0:00:02.7]} 54... Kf4 {[%clk 0:00:44.7]} 55. Qf8+ {[%clk 0:00:02.8]} 55... Ke4
{[%clk 0:00:44.4]} 56. Qxf2 {[%clk 0:00:01.7]} 56... exf2 {[%clk 0:00:44.2]} 57.
Ke2 {[%clk 0:00:02.6]} 57... Be5 {[%clk 0:00:38.5]} 58. Kxf2 {[%clk 0:00:01.9]}
58... Kd3 {[%clk 0:00:38.5]} 59. Be3 {[%clk 0:00:01.7]} 59... Kxc4 {[%clk
0:00:38.7]} 60. Ke2 {[%clk 0:00:02.3]} 60... Kxd5 {[%clk 0:00:39]} 61. Kd3
{[%clk 0:00:03.2]} 61... c4+ {[%clk 0:00:39.3]} 62. Kc2 {[%clk 0:00:03.6]} 62...
Ke4 {[%clk 0:00:39.6]} 63. Bd2 {[%clk 0:00:04.5]} 63... d5 {[%clk 0:00:39.9]}
64. Bb4 {[%clk 0:00:04.8]} 64... d4 {[%clk 0:00:40.2]} 65. Bc5 {[%clk
0:00:05.6]} 65... d3+ {[%clk 0:00:40]} 66. Kd2 {[%clk 0:00:06.5]} 66... c3+
{[%clk 0:00:40.2]} 67. Kd1 {[%clk 0:00:07.1]} 67... c2+ {[%clk 0:00:40.4]} 68.
Kc1 {[%clk 0:00:07.8]} 68... Bf4+ {[%clk 0:00:40.8]} 0-1